bitfinex-derivatives/quotes_SOLF0:USTF0_20240823
["timestamp","ask_amount","ask_price","bid_price","bid_amount"]
[1724383214212,3.4473,145.01,144.98,3.4479]
[1724383215517,3.4475,145.0,144.98,3.4479]
[1724383221619,3.4478,144.99,144.97,70.0893728]
[1724383221818,3.49462507,144.99,144.97,70.0893728]
[1724383222522,3.49462507,144.99,144.89,235.28112459]
[1724383222523,7.44682507,144.99,144.89,235.28112459]
[1724383222721,7.4,144.97,144.91,7.4]
[1724383223223,10.8483,144.97,144.95,3.4487]
[1724383223414,10.89299555,144.97,144.95,3.4487]
[1724383230628,7.4,144.96,144.9,2.5299]
[1724383230828,1.47294,144.9,144.89,7.4]
[1724383231034,7.4,144.94,144.92,3.4494]
[1724383231235,7.4,144.94,144.88,12.15852724]
[1724383231436,0.0449392,144.92,144.88,12.15852724]
[1724383232332,0.0449392,144.92,144.91,2.65895]
[1724383232537,0.0449392,144.92,144.91,1.45994]
[1724383233831,0.53922,144.91,144.88,12.15852724]
[1724383234037,0.0449392,144.92,144.88,0.80928]
[1724383234334,1.99878,144.88,144.87,3.4506]
[1724383234530,0.04848198,144.89,144.87,3.40291999]
[1724383235435,0.04848198,144.89,144.88,3.4504]
[1724383252348,0.04848198,144.89,144.88,3.39513]
[1724383253643,0.04848198,144.89,144.88,3.32953]
[1724383255250,0.04848198,144.89,144.88,3.30572]
[1724383263352,0.04848198,144.89,144.88,3.23919]
[1724383264149,0.06654,144.88,144.84,2.6085]
[1724383264354,0.06654,144.84,144.81,1.3683]
[1724383264554,0.04392444,144.84,144.83,3.4516]
[1724383266554,0.06602,144.83,144.81,1.30521]
[1724383266755,0.04392444,144.84,144.81,1.23919]
[1724383267661,0.04392444,144.84,144.83,3.4516]
[1724383270461,0.47954,144.83,144.81,1.23919]
[1724383270666,0.04392444,144.84,144.81,0.75964999]
[1724383272263,0.04392444,144.84,144.83,3.4516]
[1724383292175,0.04392444,144.84,144.83,3.41717]
[1724383292382,0.04392444,144.84,144.83,3.38416]
[1724383293884,0.04392444,144.84,144.83,3.31816]
[1724383297682,0.04392444,144.84,144.83,10.71816]
[1724383297879,7.4,144.9,144.87,3.4505]
[1724383298077,10.85,144.9,144.87,3.4505]
[1724383298882,10.89747325,144.9,144.87,3.4505]
[1724383299082,10.89747325,144.9,144.87,3.49442444]
[1724383299685,0.04747325,144.9,144.88,3.4503]
[1724383299979,0.04747325,144.9,144.87,7.44392444]
[1724383301281,0.04747325,144.9,144.89,3.4501]
[1724383317898,7.44747325,144.9,144.87,0.04392444]
[1724383318096,7.4,144.88,144.87,0.04392444]
[1724383321399,1.96496556,144.87,144.85,3.451]
[1724383321592,10.8504,144.88,144.85,1.48603444]
[1724383324297,7.4,144.88,144.85,1.48603444]
[1724383328903,10.8504,144.88,144.85,1.48603444]
[1724383329406,10.8504,144.88,144.85,1.41935444]
[1724383337313,3.4503,144.89,144.84,7.4]
[1724383337519,0.05186254,144.88,144.84,7.4]
[1724383337814,0.05186254,144.88,144.86,3.41597]
[1724383339410,0.05186254,144.88,144.87,3.4506]
[1724383347523,0.05186254,144.88,144.86,3.4507]
[1724383347717,0.05186254,144.88,144.86,3.38442]
[1724383347924,7.45186254,144.88,144.81,81.68834623]
[1724383348228,7.4,144.87,144.85,3.451]
[1724383349730,10.90236254,144.88,144.85,3.451]
[1724383350629,10.90236254,144.88,144.85,3.38791]
[1724383364244,3.4507,144.87,144.85,3.38791]
[1724383364447,0.06183,144.85,144.81,81.68834623]
[1724383364743,0.05121598,144.84,144.81,79.62344623]
[1724383366439,0.05121598,144.84,144.83,3.4516]
[1724383371449,0.05121598,144.84,144.82,3.4518]
[1724383371747,0.05121598,144.84,144.8,1.3361]
[1724383371748,7.4,144.83,144.77,7.4]
[1724383371945,0.04347325,144.81,144.77,1.74592]
[1724383372144,0.04347325,144.81,144.8,3.4523]
[1724383378347,7.4,144.87,144.83,3.4515]
[1724383378855,3.451,144.86,144.83,3.4515]
[1724383379455,3.49479218,144.86,144.83,3.49497325]
[1724383382549,10.8511,144.85,144.83,0.04347325]
[1724383382754,1.86642675,144.83,144.82,3.4517]
[1724383382958,10.8511,144.85,144.82,1.58527325]
[1724383385551,10.8511,144.85,144.83,3.4516]
[1724383386258,10.8511,144.85,144.82,3.4517]
[1724383386560,10.8511,144.85,144.82,1.45268]
[1724383389253,3.4518,144.82,144.75,1.3474]
[1724383389459,0.04530718,144.8,144.77,5.4011]
[1724383390461,0.04530718,144.8,144.79,3.4525]
[1724383393056,0.04530718,144.8,144.79,1.45305]
[1724383394955,1.99903,144.79,144.78,3.4527]
[1724383395156,1.99903,144.78,144.75,1.3474]
[1724383395357,3.99919,144.75,144.74,10.0545]
[1724383395554,0.05027014,144.76,144.74,10.0545]
[1724383395751,0.05027014,144.76,144.75,7.4]
[1724383396360,0.05027014,144.76,144.75,10.8535]
[1724383398768,0.05027014,144.76,144.75,3.4535]
[1724383398970,0.05027014,144.76,144.75,10.8535]
[1724383401270,0.05027014,144.76,144.75,3.4535]
[1724383401468,0.05027014,144.76,144.75,10.8535]
[1724383406869,0.05027014,144.76,144.75,3.4535]
[1724383408573,0.05027014,144.76,144.75,10.8535]
[1724383409376,3.4518,144.82,144.75,7.4]
[1724383409575,3.4518,144.82,144.78,7.4]
[1724383410175,3.4518,144.82,144.79,3.4525]
[1724383410380,3.49806642,144.82,144.79,3.49891212]
[1724383419387,10.89806642,144.82,144.79,3.49891212]
[1724383426090,3.49806642,144.82,144.79,3.49891212]
[1724383427288,0.04626642,144.82,144.79,7.44641212]
[1724383427796,0.04626642,144.82,144.79,5.54918212]
[1724383427995,0.04626642,144.82,144.81,10.8521]
[1724383436799,3.4511,144.86,144.81,10.8521]
[1724383436800,27.62,144.88,144.86,3.4507]
[1724383437004,27.62,144.88,144.85,7.4]
[1724383437300,4.7923,144.9,144.85,7.4]
[1724383437505,4.7923,144.9,144.85,7.3561]
[1724383437899,0.04508121,144.89,144.86,3.49520428]
[1724383438499,0.04508121,144.89,144.86,0.04450428]
[1724383438701,0.04508121,144.89,144.81,1.3678]
[1724383438702,0.02163572,144.86,144.81,1.3678]
[1724383438901,7.4,144.88,144.82,7.37836427]
[1724383439096,3.4507,144.87,144.83,3.4514]
[1724383439907,0.05212113,144.86,144.83,3.4514]
[1724383440301,3.50302113,144.86,144.83,3.4514]
[1724383440506,0.06283,144.83,144.8,76.47895724]
[1724383440807,0.04455284,144.83,144.81,7.33717]
[1724383441003,0.04455284,144.83,144.81,3.452]
[1724383441701,3.49615284,144.83,144.8,78.63635724]
[1724383441901,1.99945,144.8,144.78,7.4]
[1724383442299,0.04455284,144.83,144.78,3.40153]
[1724383442499,0.04455284,144.83,144.8,7.4]
[1724383443409,3.49625284,144.83,144.8,10.8523]
[1724383443910,0.04455284,144.83,144.81,10.852]
[1724383445206,0.04455284,144.83,144.77,1.2736]
[1724383445207,3.49625284,144.83,144.8,3.4522]
[1724383445511,3.49625284,144.83,144.8,10.8522]
[1724383445710,3.49625284,144.83,144.8,1.45248]
[1724383449611,1.99904,144.8,144.76,7.4]
[1724383449818,7.4,144.81,144.76,5.40096]
[1724383449819,0.05155567,144.79,144.76,5.40096]
[1724383450112,0.05155567,144.79,144.77,3.4529]
[1724383450512,0.05155567,144.79,144.77,10.8529]
[1724383450716,0.05155567,144.79,144.78,3.4528]
[1724383450910,0.05155567,144.79,144.78,10.8528]
[1724383454821,0.05155567,144.79,144.77,3.4528]
[1724383455024,0.05155567,144.79,144.78,7.4]
[1724383455923,0.05155567,144.79,144.78,10.8528]
[1724383463633,0.05155567,144.79,144.78,7.4]
[1724383464628,0.05155567,144.79,144.78,5.40043]
[1724383479740,0.05155567,144.79,144.78,3.40126]
[1724383480838,0.05155567,144.79,144.78,1.40113]
[1724383483949,0.05155567,144.79,144.78,4.85393]
[1724383484148,0.05155567,144.79,144.77,7.4]
[1724383484344,0.05155567,144.79,144.77,5.40083]
[1724383484545,0.05155567,144.79,144.77,10.8528]
[1724383486939,0.05155567,144.79,144.78,3.4528]
[1724383488358,0.05155567,144.79,144.78,10.8528]
[1724383492260,0.49993,144.78,144.77,10.8528]
[1724383492555,3.50405567,144.79,144.77,10.35287]
[1724383494159,3.50405567,144.79,144.77,9.953]
[1724383494558,3.50405567,144.79,144.76,3.4531]
[1724383494753,3.50405567,144.79,144.76,2.35353]
[1724383500863,3.50405567,144.79,144.77,3.453]
[1724383506958,3.50405567,144.79,144.77,10.853]
[1724383508664,0.05155567,144.79,144.78,10.8528]
[1724383509071,0.05155567,144.79,144.78,9.85415]
[1724383509863,0.05155567,144.79,144.78,7.4]
[1724383510265,0.05155567,144.79,144.77,10.8529]
[1724383510971,0.05155567,144.79,144.77,10.65305]
[1724383511171,0.05155567,144.79,144.77,8.85379]
[1724383511863,0.05155567,144.79,144.77,6.85462]
[1724383512469,0.05155567,144.79,144.77,10.30752]
[1724383513171,3.50405567,144.79,144.77,10.30752]
[1724383513771,3.50405567,144.79,144.77,3.4529]
[1724383513972,3.50405567,144.79,144.77,10.8529]
[1724383516367,0.05155567,144.79,144.77,10.8529]
[1724383516576,0.05155567,144.79,144.78,10.8528]
[1724383535788,2.06818,144.86,144.81,3.4521]
[1724383536081,30.279,144.89,144.81,10.8521]
[1724383536082,52.99141843,144.87,144.81,10.8521]
[1724383536385,3.4516,144.83,144.81,8.95546]
[1724383536881,0.04797315,144.83,144.82,3.4518]
[1724383542082,49.63773843,144.87,144.85,3.451]
[1724383542583,49.63773843,144.87,144.86,7.4]
[1724383543186,0.0462549,144.88,144.86,7.4]
[1724383543789,0.0462549,144.88,144.85,0.04497384]
[1724383543989,0.0462549,144.88,144.87,7.4]
[1724383546887,4.0757,144.95,144.87,7.4]
[1724383547080,6.14252,144.95,144.9,7.4]
[1724383547386,4.0757,144.95,144.9,7.36479]
[1724383547580,6.07221,144.95,144.9,7.36479]
[1724383547985,0.05261249,144.94,144.91,0.04375848]
[1724383548493,3.4492,144.93,144.91,0.04375848]
[1724383549491,3.4494,144.92,144.91,0.04375848]
[1724383556702,5.44591,144.92,144.91,0.04375848]
[1724383557100,3.4502,144.89,144.86,3.4508]
[1724383557307,3.4502,144.89,144.87,5.35393848]
[1724383557604,3.4502,144.89,144.87,3.4506]
[1724383558103,3.50038676,144.89,144.87,3.50189395]
[1724383559204,3.50038676,144.89,144.87,8.90229395]
[1724383562400,3.50038676,144.89,144.87,7.45129395]
[1724383563310,1.14812605,144.87,144.86,7.4]
[1724383563610,3.4504,144.88,144.86,6.25187395]
[1724383564300,3.50048676,144.89,144.87,7.4]
[1724383565307,3.4504,144.88,144.87,7.4]
[1724383569516,5.55125,144.87,144.86,0.05167535]
[1724383569712,3.4506,144.87,144.84,7.4]
[1724383570014,3.4506,144.87,144.85,7.4]
[1724383570214,3.4506,144.87,144.85,5.70106]
[1724383573322,3.4506,144.87,144.85,5.50011]
[1724383574816,3.4509,144.86,144.85,5.50011]
[1724383575420,3.4509,144.86,144.85,3.50132]
[1724383576418,1.99889,144.85,144.84,3.4513]
[1724383576622,3.50346557,144.86,144.84,8.85241]
[1724383590739,3.50346557,144.86,144.83,3.4514]
[1724383591049,3.50346557,144.86,144.83,10.8514]
[1724383593747,3.50346557,144.86,144.85,7.4]
[1724383598246,3.50346557,144.86,144.83,10.8515]
[1724383598956,3.50346557,144.86,144.83,3.4515]
[1724383599146,1.9977,144.83,144.79,3.9372]
[1724383599348,0.04799109,144.82,144.81,5.4023]
[1724383599646,0.04799109,144.82,144.81,3.4034]
[1724383600042,0.04799109,144.82,144.79,3.9372]
[1724383600248,0.04799109,144.82,144.81,7.4]
[1724383600449,0.04799109,144.82,144.81,10.8519]
[1724383609162,0.04799109,144.82,144.81,3.4521]
[1724383609459,0.04799109,144.82,144.81,10.8521]
[1724383617274,0.04799109,144.82,144.81,9.85305]
[1724383617474,0.04799109,144.82,144.81,7.4]
[1724383618278,0.04799109,144.82,144.81,10.8521]
[1724383620172,0.04799109,144.82,144.81,9.85185]
[1724383620472,0.04799109,144.82,144.81,10.8521]
[1724383624873,0.04799109,144.82,144.8,3.4522]
[1724383625176,0.04799109,144.82,144.8,7.4]
[1724383625771,3.49989109,144.82,144.8,7.4]
[1724383626176,3.49989109,144.82,144.79,2.5798]
[1724383626374,0.79956,144.79,144.74,1.3138]
[1724383626569,0.0481167,144.78,144.77,6.60044]
[1724383626775,0.04683065,144.79,144.77,3.40092]
[1724383626973,0.04683065,144.79,144.78,3.4527]
[1724383627373,0.04683065,144.79,144.74,1.3138]
[1724383627374,1.99972,144.78,144.74,1.3138]
[1724383627576,3.49943065,144.79,144.76,8.85338]
[1724383628975,3.49943065,144.79,144.76,6.85421]
[1724383629178,0.04683065,144.79,144.76,6.85421]
[1724383630280,0.04683065,144.79,144.77,3.4528]
[1724383630881,0.04683065,144.79,144.78,7.4]
[1724383633276,0.04683065,144.79,144.75,3.4534]
[1724383633478,0.04683065,144.79,144.77,7.4]
[1724383634380,0.04683065,144.79,144.77,10.8529]
[1724383635985,0.04683065,144.79,144.78,3.4528]
[1724383636285,0.04683065,144.79,144.78,10.8528]
[1724383638082,0.04683065,144.79,144.78,3.4528]
[1724383654201,1.2895,144.89,144.77,7.4]
[1724383654404,1.2895,144.89,144.76,29.6]
[1724383654405,8.6895,144.89,144.83,7.4]
[1724383654603,10.75789,144.89,144.83,7.4]
[1724383654798,3.43163397,144.88,144.83,7.4]
[1724383654997,3.4513,144.85,144.82,10.8516]
[1724383655403,3.50031419,144.85,144.82,10.89927891]
[1724383655603,3.4514,144.84,144.82,3.49927891]
[1724383655805,3.4514,144.84,144.82,0.04767891]
[1724383661010,3.4514,144.84,144.82,3.49947891]
[1724383667203,3.4516,144.83,144.82,0.04767891]
[1724383667410,7.44901419,144.85,144.78,1.339]
[1724383667604,7.4,144.85,144.78,8.739]
[1724383667812,3.4516,144.83,144.8,3.4523]
[1724383668418,3.49830851,144.83,144.8,3.4523]
[1724383668624,3.4519,144.82,144.8,3.4523]
[1724383669319,3.4519,144.82,144.79,10.8524]
[1724383670318,3.49850851,144.83,144.8,3.4523]
[1724383672618,0.04670851,144.83,144.81,7.4]
[1724383674323,3.49830851,144.83,144.81,10.8521]
[1724383680027,0.04670851,144.83,144.81,10.8521]
[1724383681120,0.04670851,144.83,144.81,3.4521]
[1724383681321,3.49830851,144.83,144.81,10.8521]
[1724383683829,0.04670851,144.83,144.82,10.8518]
[1724383684524,0.04670851,144.83,144.82,8.85328]
[1724383686332,0.04670851,144.83,144.82,7.4]
[1724383688728,0.04670851,144.83,144.82,10.8518]
[1724383696737,1.99903,144.82,144.81,3.4519]
[1724383697032,3.49840851,144.83,144.81,1.45287]
[1724383699045,3.49840851,144.83,144.8,10.8521]
[1724383699334,1.9989,144.8,144.78,1.339]
[1724383699532,3.4521,144.81,144.74,2.6008]
[1724383699533,0.71280493,144.78,144.74,2.6008]
[1724383699732,0.05290493,144.78,144.77,10.1931]
[1724383710938,0.05290493,144.78,144.77,3.453]
[1724383711140,0.05290493,144.78,144.77,10.853]
[1724383712740,0.05290493,144.78,144.77,8.85379]
[1724383714249,0.05290493,144.78,144.75,1.3031]
[1724383714450,0.05290493,144.78,144.77,7.4]
[1724383715344,0.05290493,144.78,144.77,10.853]
[1724383715552,0.05290493,144.78,144.77,8.85327]
[1724383717146,0.05290493,144.78,144.77,7.4]
[1724383719939,0.05290493,144.78,144.76,3.4531]
[1724383727557,0.05290493,144.78,144.75,3.4534]
[1724383727757,0.05290493,144.78,144.75,5.3992]
[1724383727955,0.05290493,144.78,144.73,7.4]
[1724383728262,3.4534,144.76,144.73,8.85500999]
[1724383728447,3.4534,144.76,144.73,6.85625]
[1724383730551,3.4534,144.76,144.74,7.4]
[1724383730951,3.4531,144.77,144.74,7.4]
[1724383732147,0.05290493,144.78,144.74,7.4]
[1724383732348,3.4533,144.76,144.74,7.4]
[1724383734856,7.45290493,144.78,144.7,2.6721]
[1724383735053,0.045566,144.75,144.71,7.4]
[1724383735255,0.045566,144.75,144.7,1.3136]
[1724383735454,0.045566,144.75,144.71,5.40124]
[1724383735653,3.499166,144.75,144.72,3.4541]
[1724383736055,0.045566,144.75,144.7,1.3136]
[1724383736353,3.4538,144.74,144.71,7.4]
[1724383736957,1.99903,144.71,144.7,4.7683]
[1724383737148,0.04425548,144.72,144.71,5.40097]
[1724383737552,0.04425548,144.72,144.71,7.4]
[1724383738052,1.99903,144.71,144.66,1.3774]
[1724383738255,0.04425548,144.72,144.68,5.40097]
[1724383738453,0.04425548,144.72,144.68,3.40094]
[1724383739459,3.49845548,144.72,144.69,3.4548]
[1724383740362,3.49845548,144.72,144.7,7.4]
[1724383740561,0.04425548,144.72,144.7,7.4]
[1724383741762,0.04425548,144.72,144.7,10.8546]
[1724383742863,0.04425548,144.72,144.7,8.85432]
[1724383746664,0.04425548,144.72,144.71,3.4544]
[1724383746860,0.04425548,144.72,144.71,10.8544]
[1724383750572,0.04425548,144.72,144.71,3.4544]
[1724383750760,0.04425548,144.72,144.7,10.8546]
[1724383750958,0.04425548,144.72,144.7,8.85649]
[1724383755673,3.49845548,144.72,144.69,3.4548]
[1724383755874,3.49845548,144.72,144.69,1.4559]
[1724383757273,1.99889,144.69,144.66,7.4]
[1724383757471,3.99928,144.66,144.64,7.4]
[1724383757772,3.50613716,144.69,144.64,0.85842]
[1724383757971,3.50613716,144.69,144.62,1.2999]
[1724383758165,3.50613716,144.69,144.66,3.4556]
[1724383760475,3.4552,144.68,144.65,10.8557]
[1724383761272,3.50623716,144.69,144.66,3.4556]
[1724383763067,0.05113716,144.69,144.66,3.4556]
[1724383763271,0.05113716,144.69,144.66,1.464]
[1724383764080,3.50623716,144.69,144.66,1.464]
[1724383766079,3.50623716,144.69,144.65,7.4]
[1724383766080,3.4552,144.68,144.65,3.4558]
[1724383767585,3.4552,144.68,144.66,3.4556]
[1724383768077,3.4552,144.68,144.64,7.4]
[1724383768475,3.4552,144.68,144.65,3.4557]
[1724383771583,3.4554,144.67,144.64,3.4561]
[1724383771781,3.4554,144.67,144.64,1.4572]
[1724383774788,0.54183,144.64,144.63,7.4]
[1724383774985,0.04392339,144.65,144.63,6.85817]
[1724383775382,0.04392339,144.65,144.63,10.8562]
[1724383777790,0.04392339,144.65,144.64,3.4561]
[1724383786088,0.04392339,144.65,144.64,10.8561]
[1724383786388,7.4,144.74,144.64,7.4]
[1724383786593,7.4,144.74,144.69,7.4]
[1724383786900,29.70946,144.75,144.71,7.4]
[1724383787192,3.4538,144.74,144.72,7.4489893]
[1724383787384,0.05089686,144.74,144.72,7.4489893]
[1724383787789,0.05089686,144.74,144.73,7.4]
[1724383790209,3.50459686,144.74,144.72,0.0489893]
[1724383790694,0.05089686,144.74,144.72,3.5031893]
[1724383790903,0.05089686,144.74,144.72,0.0489893]
[1724383791709,3.50459686,144.74,144.72,0.0489893]
[1724383795314,0.05089686,144.74,144.72,3.5029893]
[1724383804725,0.05089686,144.74,144.73,10.854]
[1724383808413,0.05089686,144.74,144.73,7.4]
[1724383808720,3.50459686,144.74,144.72,10.9030893]
[1724383809219,3.50459686,144.74,144.72,10.2052093]
[1724383814220,3.50459686,144.74,144.72,2.8052093]
[1724383822634,3.50459686,144.74,144.71,7.4]
[1724383823337,3.50459686,144.74,144.72,3.4541]
[1724383823730,3.50459686,144.74,144.71,7.4]
[1724383823731,3.4541,144.73,144.71,7.4]
[1724383824033,3.4541,144.73,144.71,5.40097]
[1724383824335,3.50469686,144.74,144.71,8.85527]
[1724383827039,3.454,144.73,144.71,8.85527]
[1724383827239,0.05089686,144.74,144.72,7.4]
[1724383827836,3.50469686,144.74,144.72,7.4]
[1724383831041,0.05089686,144.74,144.72,7.4]
[1724383831639,0.05089686,144.74,144.72,7.20302]
[1724383831834,0.05089686,144.74,144.71,1.2916]
[1724383831835,0.05089686,144.74,144.73,3.454]
[1724383832040,0.05089686,144.74,144.73,10.854]
[1724383834751,3.4531,144.77,144.74,3.4536]
[1724383834946,3.4531,144.77,144.75,7.4]
[1724383835846,3.50369226,144.77,144.75,7.44980974]
[1724383836343,3.50369226,144.77,144.75,0.04980974]
[1724383836739,0.05059226,144.77,144.75,0.04980974]
[1724383836946,1.94936026,144.75,144.7,2.6884]
[1724383837139,7.4,144.78,144.72,5.45063974]
[1724383837349,3.4539,144.74,144.71,3.4543]
[1724383837544,1.99888001,144.71,144.66,4.0401]
[1724383837847,2.542,144.79,144.66,4.0401]
[1724383837848,3.4543,144.72,144.66,4.0401]
[1724383838145,1.95810001,144.66,144.61,254.6]
[1724383838348,0.04742739,144.65,144.61,23.64494]
[1724383838545,3.4548,144.7,144.66,3.4554]
[1724383838850,0.04670297,144.69,144.67,7.4]
[1724383839046,3.50170297,144.69,144.66,3.4554]
[1724383839250,0.04670297,144.69,144.59,50.90986512]
[1724383839453,0.05305946,144.65,144.61,27.59491]
[1724383839753,3.455,144.69,144.65,3.4557]
[1724383840046,0.05189214,144.68,144.66,7.4]
[1724383840441,0.05189214,144.68,144.66,10.8556]
[1724383840747,0.05189214,144.68,144.67,7.4]
[1724383843257,0.05189214,144.68,144.67,5.40236]
[1724383847354,0.05189214,144.68,144.66,10.8556]
[1724383852259,0.05189214,144.68,144.66,8.85574]
[1724383853045,3.50709214,144.68,144.66,8.85574]
[1724383853249,3.50709214,144.68,144.66,6.85657]
[1724383854357,3.50709214,144.68,144.66,4.85754]
[1724383854549,3.50709214,144.68,144.62,3.8611]
[1724383854754,3.50709214,144.68,144.64,7.4]
[1724383855259,3.50709214,144.68,144.65,3.4558]
[1724383858866,3.50709214,144.68,144.66,3.4556]
[1724383859052,0.05189214,144.68,144.66,10.8556]
[1724383859560,0.05189214,144.68,144.67,10.8554]
[1724383860857,0.05189214,144.68,144.67,7.4]
[1724383861056,0.05189214,144.68,144.66,10.8555]
[1724383861649,0.05189214,144.68,144.67,3.4554]
[1724383862863,0.05189214,144.68,144.66,10.8555]
[1724383863660,3.50709214,144.68,144.66,10.8555]
[1724383864663,3.50709214,144.68,144.66,8.85808]
[1724383865562,0.05189214,144.68,144.67,7.4]
[1724383865764,0.05189214,144.68,144.67,10.8554]
[1724383866765,68.45423762,144.74,144.67,7.4]
[1724383867061,68.45423762,144.74,144.72,7.4]
[1724383867364,71.90813762,144.74,144.72,7.4]
[1724383867665,3.50034713,144.74,144.72,7.44961123]
[1724383868361,0.01406877,144.72,144.7,7.4]
[1724383868559,3.454,144.73,144.7,7.4]
[1724383869258,3.4543,144.72,144.68,7.4]
[1724383869454,0.04756795,144.71,144.68,5.66286]
[1724383870365,0.04756795,144.71,144.69,3.4548]
[1724383872162,0.04756795,144.71,144.7,7.4]
[1724383873660,0.04756795,144.71,144.62,3.8611]
[1724383873856,0.04602312,144.68,144.67,5.40574]
[1724383874055,0.04945537,144.69,144.67,5.40574]
[1724383874266,3.4542,144.72,144.69,10.8549]
[1724383874460,3.50472624,144.72,144.69,8.85558999]
[1724383876468,3.4545,144.71,144.69,7.4]
[1724383877971,3.4548,144.7,144.67,10.8554]
[1724383878267,3.50652806,144.7,144.67,3.4554]
[1724383879572,0.05172806,144.7,144.69,7.4]
[1724383880763,0.05172806,144.7,144.69,10.8549]
[1724383884774,0.05172806,144.7,144.62,3.8611]
[1724383884974,0.05172806,144.7,144.67,7.4]
[1724383885173,0.05172806,144.7,144.67,5.40257]
[1724383885373,3.50652806,144.7,144.68,6.39979]
[1724383885972,0.05172806,144.7,144.68,9.85489]
[1724383886178,0.05172806,144.7,144.69,7.4]
[1724383887180,0.05172806,144.7,144.69,10.8549]
[1724383893473,3.4536,144.75,144.72,3.4542]
[1724383893674,3.4536,144.75,144.72,10.8542]
[1724383894484,3.50036248,144.75,144.72,10.90354822]
[1724383898884,0.04676248,144.75,144.74,7.4]
[1724383900378,0.04676248,144.75,144.74,10.8537]
[1724383909381,0.04676248,144.75,144.73,10.8539]
[1724383909590,0.04676248,144.75,144.73,10.78992]
[1724383910493,0.04676248,144.75,144.73,8.79091]
[1724383911688,0.04676248,144.75,144.73,1.39091]
[1724383911885,0.04676248,144.75,144.73,8.79091]
[1724383913990,0.04676248,144.75,144.72,0.04934822]
[1724383913991,0.04676248,144.75,144.74,10.8537]
[1724383919793,0.04676248,144.75,144.74,3.4537]
[1724383919987,1.9977,144.74,144.72,0.04934822]
[1724383920191,1.94835178,144.72,144.71,7.4]
[1724383920395,0.04676248,144.75,144.71,3.45274822]
[1724383920795,0.04676248,144.75,144.72,3.4541]
[1724383920796,3.50036248,144.75,144.72,3.4541]
[1724383927906,3.50036248,144.75,144.73,3.454]
[1724383927907,0.04676248,144.75,144.73,3.454]
[1724383929300,0.04676248,144.75,144.74,10.8537]
[1724383929800,0.04676248,144.75,144.74,8.95488]
[1724383930006,0.04676248,144.75,144.74,5.50118]
[1724383936800,0.04676248,144.75,144.74,8.95488]
[1724383937502,0.04676248,144.75,144.74,7.05702]
[1724383939498,0.04676248,144.75,144.74,5.05783]
[1724383942902,0.04676248,144.75,144.74,3.05908]
[1724383943102,0.04676248,144.75,144.74,10.45908]
[1724383943806,3.4528,144.78,144.75,3.4533]
[1724383943998,3.4528,144.78,144.76,7.4]
[1724383944711,3.50382431,144.78,144.76,7.44579813]
[1724383945709,3.50382431,144.78,144.76,10.89899813]
[1724383946412,3.50382431,144.78,144.76,7.44579813]
[1724383947002,0.05102431,144.78,144.76,10.89899813]
[1724383951307,3.50382431,144.78,144.76,10.89899813]
[1724383952512,0.05102431,144.78,144.76,10.89899813]
[1724383953308,0.05102431,144.78,144.77,3.453]
[1724383954516,3.4519,144.82,144.81,7.4]
[1724383954812,3.4519,144.82,144.81,7.35584]
[1724383955408,3.49656208,144.83,144.81,7.35584]
[1724383956711,3.4521,144.81,144.8,0.05157104]
[1724383957611,1.95136896,144.8,144.78,10.8527]
[1724383957914,3.4521,144.81,144.78,3.4527]
[1724383958631,3.4521,144.81,144.78,3.50102038]
[1724383958811,3.4523,144.8,144.78,3.50102038]
[1724383959425,3.4523,144.8,144.78,0.04832038]
[1724383962815,3.4523,144.8,144.78,10.90102038]
[1724383963015,3.4521,144.81,144.79,7.4]
[1724383963416,3.4521,144.81,144.78,10.90102038]
[1724383965622,3.4524,144.8,144.78,0.04832038]
[1724383965820,1.94922962,144.78,144.77,10.853]
[1724383966013,3.4524,144.8,144.77,8.90377038]
[1724383966816,3.49739789,144.8,144.77,8.90377038]
[1724383968125,3.4526,144.79,144.77,7.4]
[1724383970022,3.4526,144.79,144.77,10.8529]